fUST/lending_fUST_20240413
["ID","MTS","AMOUNT","RATE_DAILY","PERIOD"]
[322435979,1712998241595,-500.0,0.00037585,7]
[322435980,1712998241604,-500.0,0.00037585,7]
[322435981,1712998241615,-500.0,0.00037585,7]
[322435982,1712998241625,-500.0,0.00037585,7]
[322435983,1712998241635,-507.12255338,0.00037585,7]
[322435984,1712998241644,-500.0,0.00037585,7]
[322435985,1712998241654,-502.09780536,0.00037585,7]
[322435986,1712998241664,-500.0,0.00037585,7]
[322435987,1712998241673,-500.0,0.00037585,7]
[322435988,1712998241685,-500.0,0.00037585,7]
[322435989,1712998241695,-500.0,0.00037585,7]
[322435990,1712998241704,-500.0,0.00037585,7]
[322435991,1712998241713,-394.69421239,0.00037585,7]
[322435992,1712998241723,-500.0,0.00037585,7]
[322435993,1712998241733,-500.0,0.00037585,7]
[322435994,1712998241744,-500.0,0.00037585,7]
[322435995,1712998241753,-500.0,0.00037585,7]
[322435996,1712998241764,-500.0,0.00037585,7]
[322435997,1712998241774,-500.0,0.00037585,7]
[322435998,1712998241783,-500.0,0.00037585,7]
[322435999,1712998241793,-576.14087697,0.00037585,7]
[322436000,1712998241803,-403.0062088,0.00037585,7]
[322436001,1712998241812,-500.0,0.00037585,7]
[322436002,1712998241825,-500.0,0.00037585,7]
[322436003,1712998241835,-500.0,0.00037585,7]
[322436004,1712998241845,-585.42150405,0.00037585,7]
[322436005,1712998241855,-500.0,0.00037585,7]
[322436006,1712998241864,-500.0,0.00037585,7]
[322436007,1712998241874,-500.0,0.00037585,7]
[322436008,1712998241884,-500.0,0.00037585,7]
[322436009,1712998241895,-4338.54,0.00037585,7]
[322436010,1712998241904,-500.0,0.00037585,7]
[322436011,1712998241916,-500.0,0.00037585,7]
[322436012,1712998241925,-500.0,0.00037585,7]
[322436013,1712998241935,-504.05755057,0.00037585,7]
[322436014,1712998241944,-500.0,0.00037585,7]
[322436015,1712998241954,-500.0,0.00037585,7]
[322436016,1712998241963,-263.05878435,0.00037585,7]
[322436017,1712998241972,-771.09,0.00037585,7]
[322436018,1712998241981,-500.0,0.00037585,7]
[322436019,1712998241990,-500.0,0.00037585,7]
[322436020,1712998241999,-500.0,0.00037585,7]
[322436021,1712998242008,-500.0,0.00037585,7]
[322436022,1712998242018,-500.0,0.00037585,7]
[322436023,1712998242027,-505.99,0.00037585,7]
[322436024,1712998242036,-500.0,0.00037585,7]
[322436025,1712998242047,-501.33177882,0.00037585,7]
[322436026,1712998242056,-500.0,0.00037585,7]
[322436027,1712998242065,-679.04,0.00037585,7]
[322436028,1712998242077,-500.0,0.00037585,7]
[322436029,1712998242086,-500.0,0.00037585,7]
[322436030,1712998242096,-501.98539824,0.00037585,7]
[322436031,1712998242105,-500.0,0.00037585,7]
[322436032,1712998242114,-500.0,0.00037585,7]
[322436033,1712998242123,-506.2298719,0.00037585,7]
[322436034,1712998242133,-500.0,0.00037585,7]
[322436035,1712998242141,-500.0,0.00037585,7]
[322436036,1712998242151,-500.0,0.00037585,7]
[322436037,1712998242160,-500.0,0.00037585,7]
[322436038,1712998242169,-500.0,0.00037585,7]
[322436039,1712998242178,-513.20767902,0.00037585,7]
[322436040,1712998242187,-502.37660325,0.00037585,7]
[322436041,1712998242196,-1082.05,0.00037585,7]
[322436042,1712998242205,-500.0,0.00037585,7]
[322436043,1712998242215,-500.0,0.00037585,7]
[322436044,1712998242225,-501.54953174,0.00037585,7]
[322436045,1712998242235,-409.34752428,0.00037585,7]
[322436046,1712998242245,-500.0,0.00037585,7]
[322436047,1712998242254,-500.92296154,0.00037585,7]
[322436048,1712998242263,-500.0,0.00037585,7]
[322436049,1712998242272,-500.0,0.00037585,7]
[322436050,1712998242282,-500.0,0.00037585,7]
[322436051,1712998242291,-500.0,0.00037585,7]
[322436052,1712998242301,-520.85823513,0.00037585,7]
[322436053,1712998242310,-500.0,0.00037585,7]
[322436054,1712998242322,-416.00457762,0.00037585,7]
[322436055,1712998242332,-500.0,0.00037585,7]
[322436056,1712998242343,-500.0,0.00037585,7]
[322436057,1712998242352,-500.0,0.00037585,7]
[322436058,1712998242362,-500.0,0.00037585,7]
[322436059,1712998242371,-500.0,0.00037585,7]
[322436060,1712998242381,-500.0,0.00037585,7]
[322436061,1712998242390,-500.0,0.00037585,7]
[322436062,1712998242400,-500.0,0.00037585,7]
[322436063,1712998242409,-1829.86,0.00037585,7]
[322436064,1712998242418,-500.0,0.00037585,7]
[322436065,1712998242428,-500.0,0.00037585,7]
[322436066,1712998242437,-500.0,0.00037585,7]
[322436067,1712998242446,-535.21305459,0.00037585,7]
[322436068,1712998242455,-500.0,0.00037585,7]
[322436069,1712998242465,-501.32346255,0.00037585,7]
[322436070,1712998242474,-500.0,0.00037585,7]
[322436071,1712998242483,-2555.33,0.00037585,7]
[322436072,1712998242493,-500.0,0.00037585,7]
[322436073,1712998242502,-2336.82,0.00037585,7]
[322436074,1712998242511,-1521.37,0.00037585,7]
[322436075,1712998242520,-500.0,0.00037585,7]
[322436076,1712998242530,-500.0,0.00037585,7]
[322436077,1712998242539,-500.0,0.00037585,7]
[322436078,1712998242549,-525.7,0.00037585,7]
[322436079,1712998242558,-500.0,0.00037585,7]
[322436080,1712998242569,-500.0,0.00037585,7]
[322436081,1712998242579,-561.14403191,0.00037585,7]
[322436082,1712998242588,-500.0,0.00037585,7]
[322436083,1712998242598,-500.0,0.00037586,7]
[322436084,1712998242607,-500.0,0.00037586,7]
[322436085,1712998242617,-500.0,0.00037586,7]
[322436086,1712998242626,-588.54238469,0.00037586,7]
[322436087,1712998242635,-11187.57,0.00037586,7]
[322436088,1712998242644,-500.0,0.00037586,7]
[322436089,1712998242653,-3767.53770097,0.00037587,4]
[322436090,1712998242663,-152.60882266,0.00037648,22]
[322436091,1712998242673,-152.60882266,0.00037648,22]
[322436092,1712998242682,-975.31224978,0.00037648,2]
[322436093,1712998242691,-154.9721438,0.00037683,7]
[322436094,1712998242701,-221.754,0.00037959,2]
[322436095,1712998242711,-177.0,0.000382,13]
[322436096,1712998242720,-383.43,0.00038356,4]
[322436097,1712998242730,-159.82727101,0.0003865,7]
[322436099,1712998242739,-7442.16766913,0.00038715,2]
[322436101,1712998242750,-154.9721438,0.00038811,7]
[322436103,1712998242760,-436.0,0.000393,2]
[322436105,1712998242771,-500.0,0.000395,2]
[322436107,1712998242781,-500.0,0.00039501,7]
[322436109,1712998242790,-500.0,0.00039501,7]
[322436111,1712998242800,-695.84,0.00039501,7]
[322436113,1712998242810,-2914.36,0.00039501,7]
[322436114,1712998242820,-500.0,0.00039501,7]
[322436115,1712998242829,-3095.05,0.00039501,7]
[322436116,1712998242840,-973.77,0.00039501,7]
[322436117,1712998242849,-300.0,0.00039501,7]
[322436118,1712998242858,-1026.87,0.00039501,7]
[322436119,1712998242868,-500.0,0.00039501,7]
[322436120,1712998242878,-179.25745863,0.00039501,7]
[322436121,1712998242887,-500.0,0.00039501,7]
[322436122,1712998242897,-861.16,0.00039501,7]
[322436123,1712998243022,-500.0,0.00039501,7]
[322436124,1712998243032,-1143.27,0.00039501,7]
[322436125,1712998243042,-500.0,0.00039501,7]
[322436126,1712998243051,-500.0,0.00039501,7]
[322436127,1712998243060,-500.0,0.00039501,7]
[322436128,1712998243071,-500.0,0.00039501,7]
[322436129,1712998243080,-293.0,0.00039501,7]
[322436130,1712998243089,-500.0,0.00039501,7]
[322436131,1712998243099,-3925.46,0.00039501,7]
[322436132,1712998243108,-1195.42,0.00039501,7]
[322436133,1712998243117,-1478.82,0.00039501,7]
[322436134,1712998243126,-1381.07,0.00039501,7]
[322436135,1712998243135,-500.0,0.00039501,7]
[322436136,1712998243144,-500.0,0.00039501,7]
[322436137,1712998243154,-500.0,0.00039502,7]
[322436138,1712998243163,-500.0,0.00039502,7]
[322436139,1712998243171,-500.0,0.00039502,7]
[322436140,1712998243181,-500.0,0.00039502,7]
[322436141,1712998243190,-500.0,0.00039502,7]
[322436142,1712998243199,-500.0,0.00039502,7]
[322436143,1712998243208,-500.0,0.00039502,7]
[322436144,1712998243218,-500.0,0.00039502,7]
[322436145,1712998243227,-500.0,0.00039502,7]
[322436146,1712998243236,-500.0,0.00039502,7]
[322436147,1712998243246,-677.84,0.00039502,7]
[322436148,1712998243255,-500.0,0.00039502,7]
[322436149,1712998243264,-1490.69,0.00039502,7]
[322436150,1712998243273,-500.0,0.00039502,7]
[322436151,1712998243282,-500.0,0.00039502,7]
[322436152,1712998243291,-773.06,0.00039502,7]
[322436153,1712998243300,-1250.53,0.00039502,7]
[322436154,1712998243310,-500.0,0.00039502,7]
[322436155,1712998243319,-500.0,0.00039502,7]
[322436156,1712998243328,-500.0,0.00039502,7]
[322436157,1712998243337,-500.0,0.00039502,7]
[322436158,1712998243353,-500.0,0.00039502,7]
[322436159,1712998243368,-891.81,0.00039502,7]
[322436161,1712998243378,-500.0,0.00039502,7]
[322436163,1712998243388,-502.41790659,0.00039502,7]
[322436164,1712998243398,-500.0,0.00039502,7]
[322436165,1712998243408,-871.65,0.00039502,7]
[322436166,1712998243417,-500.0,0.00039502,7]
[322436167,1712998243427,-453.65434106,0.00039502,7]
[322436169,1712998243437,-500.0,0.00039502,7]
[322436171,1712998243447,-500.0,0.00039502,7]
[322436173,1712998243458,-2927.54,0.00039502,7]
[322436174,1712998243468,-254.09674536,0.00039502,7]
[322436175,1712998243477,-537.19,0.00039502,7]
[322436176,1712998243487,-500.0,0.00039502,7]
[322436177,1712998243497,-500.0,0.00039502,7]
[322436178,1712998243507,-500.0,0.00039502,7]
[322436179,1712998243517,-500.0,0.00039502,7]
[322436180,1712998243527,-500.0,0.00039502,7]
[322436181,1712998243535,-500.0,0.00039502,7]
[322436182,1712998243545,-1135.55,0.00039502,7]
[322436183,1712998243555,-1050.83,0.00039502,7]
[322436184,1712998243564,-517.58141715,0.00039502,7]
[322436185,1712998243577,-637.09408538,0.00039502,7]
[322436186,1712998243587,-500.0,0.00039502,7]
[322436187,1712998243597,-500.0,0.00039502,7]
[322436188,1712998243607,-1184.51,0.00039502,7]
[322436189,1712998243616,-34452.58,0.00039502,7]
[322436190,1712998243626,-516.49275527,0.00039502,7]
[322436191,1712998243636,-500.0,0.00039502,7]
[322436192,1712998243645,-2677.07,0.00039502,7]
[322436193,1712998243654,-761.29,0.00039502,7]
[322436194,1712998243664,-500.0,0.00039502,7]
[322436196,1712998243673,-2058.64,0.00039502,7]
[322436197,1712998243683,-500.0,0.00039502,7]
[322436198,1712998243692,-500.0,0.00039502,7]
[322436199,1712998243702,-7069.45,0.00039502,7]
[322436200,1712998243711,-803.03,0.00039502,7]
[322436201,1712998243722,-310.45774216,0.00039503,4]
[322436202,1712998243732,-500.0,0.00039503,7]
[322436203,1712998243742,-873.25,0.00039503,7]
[322436204,1712998243755,-516.88435255,0.00039503,7]
[322436205,1712998243765,-500.0,0.00039503,7]
[322436206,1712998243775,-500.0,0.00039503,7]
[322436207,1712998243784,-500.0,0.00039503,7]
[322436208,1712998243794,-507.82013399,0.00039503,7]
[322436209,1712998243803,-500.0,0.00039503,7]
[322436210,1712998243813,-500.0,0.00039503,7]
[322436211,1712998243825,-291.63521212,0.00039503,7]
[322436212,1712998243835,-521.08070212,0.00039503,7]
[322436213,1712998243844,-529.60230048,0.00039503,7]
[322436214,1712998243854,-500.0,0.00039503,7]
[322436215,1712998243864,-500.0,0.00039503,7]
[322436216,1712998243874,-1018.56,0.00039503,7]
[322436217,1712998243883,-505.82341334,0.00039503,7]
[322436218,1712998243893,-500.0,0.00039503,7]
[322436219,1712998243902,-500.0,0.00039503,7]
[322436220,1712998243911,-500.0,0.00039503,7]
[322436221,1712998243920,-483.67862824,0.00039503,7]
[322436222,1712998243930,-2690.02,0.00039503,7]
[322436223,1712998243939,-932.15,0.00039503,7]
[322436224,1712998243949,-404.94132883,0.00039503,7]
[322436225,1712998243958,-1410.43,0.00039503,7]
[322436226,1712998243968,-498.45758722,0.00039503,7]
[322436227,1712998243977,-500.0,0.00039503,7]
[322436228,1712998243987,-500.0,0.00039503,7]
[322436229,1712998243996,-500.0,0.00039503,7]
[322436230,1712998244005,-337.67560102,0.00039503,7]
[322436231,1712998244014,-500.0,0.00039503,7]
[322436232,1712998244024,-502.12859615,0.00039503,7]
[322436233,1712998244033,-500.0,0.00039503,7]
[322436234,1712998244042,-500.0,0.00039503,7]
[322436235,1712998244052,-500.0,0.00039503,7]
[322436236,1712998244061,-500.0,0.00039503,7]
[322436237,1712998244072,-500.0,0.00039503,7]
[322436238,1712998244081,-500.0,0.00039503,7]
[322436239,1712998244091,-500.0,0.00039503,7]
[322436240,1712998244100,-500.0,0.00039503,7]
[322436241,1712998244109,-375.0726596,0.00039503,7]
[322436242,1712998244119,-617.97867479,0.00039503,7]
[322436243,1712998244128,-500.0,0.00039503,7]
[322436244,1712998244139,-500.0,0.00039503,7]
[322436245,1712998244148,-219.02049985,0.00039503,7]
[322436246,1712998244158,-500.0,0.00039503,7]
[322436247,1712998244167,-500.0,0.00039503,7]
[322436248,1712998244177,-4338.54,0.00039503,7]
[322436249,1712998244186,-500.0,0.00039503,7]
[322436250,1712998244195,-591.43851443,0.00039503,7]
[322436251,1712998244205,-500.0,0.00039503,7]
[322436252,1712998244214,-500.0,0.00039503,7]
[322436253,1712998244223,-771.09,0.00039503,7]
[322436254,1712998244233,-500.0,0.00039503,7]
[322436255,1712998244242,-500.0,0.00039503,7]
[322436256,1712998244251,-500.0,0.00039503,7]
[322436257,1712998244261,-479.27390222,0.00039503,7]
[322436258,1712998244270,-505.99,0.00039503,7]
[322436259,1712998244279,-507.69288927,0.00039503,7]
[322436260,1712998244289,-679.04,0.00039503,7]
[322436261,1712998244300,-500.0,0.00039503,7]
[322436262,1712998244309,-500.0,0.00039503,7]
[322436263,1712998244319,-500.0,0.00039503,7]
[322436264,1712998244328,-1082.05,0.00039503,7]
[322436265,1712998244338,-500.0,0.00039503,7]
[322436266,1712998244347,-500.0,0.00039503,7]
[322436267,1712998244357,-500.0,0.00039503,7]
[322436268,1712998244366,-500.0,0.00039503,7]
[322436269,1712998244375,-500.0,0.00039503,7]
[322436270,1712998244384,-500.0,0.00039503,7]
[322436271,1712998244393,-500.0,0.00039503,7]
[322436272,1712998244403,-500.0,0.00039503,7]
[322436273,1712998244412,-500.0,0.00039503,7]
[322436274,1712998244421,-500.0,0.00039503,7]
[322436275,1712998244431,-1829.86,0.00039503,7]
[322436276,1712998244440,-500.0,0.00039503,7]
[322436277,1712998244449,-500.0,0.00039503,7]
[322436278,1712998244458,-500.0,0.00039503,7]
[322436279,1712998244467,-500.0,0.00039503,7]
[322436280,1712998244476,-2555.33,0.00039503,7]
[322436281,1712998244486,-500.0,0.00039503,7]
[322436282,1712998244495,-2336.82,0.00039503,7]
[322436283,1712998244504,-1521.37,0.00039503,7]
[322436284,1712998244513,-500.0,0.00039503,7]
[322436285,1712998244523,-500.0,0.00039503,7]
[322436286,1712998244533,-525.7,0.00039503,7]
[322436287,1712998244542,-500.0,0.00039503,7]
[322436288,1712998244551,-552.97227873,0.00039503,7]
[322436289,1712998244560,-503.57901693,0.00039503,7]
[322436290,1712998244570,-11187.57,0.00039504,7]
[322436291,1712998244580,-1014.05805107,0.00039505,4]
[322436292,1712998244589,-227.65732621,0.00039505,2]
[322436293,1712998244599,-155.43363813,0.00039505,4]
[322436294,1712998244608,-225.37664132,0.00039505,2]
[322436295,1712998244617,-500.0,0.00039505,5]
[322436296,1712998244627,-159.82727101,0.00039524,7]
[322436297,1712998244636,-159.82727101,0.00039582,7]
[322436298,1712998244645,-727.94970687,0.00039708,13]
[322436299,1712998244654,-1838.41888221,0.000399,2]
[322436300,1712998244664,-183.99725732,0.00039989,30]
[322436301,1712998244673,-161.08119418,0.00039989,30]
[322436302,1712998244683,-90758.37350609,0.0003999,2]
[322436303,1712998244741,-500.0,0.00037583,7]
[322436304,1712998244752,-500.0,0.00039501,7]
[322436305,1712998244764,-355.17867522,0.0003999,2]
[322436306,1712998244776,-3082.56849314,0.0003999,2]
[322436307,1712998244982,-162.625284,0.00027397,2]
[322436308,1712998244991,-162.625284,0.00034703,2]
[322436309,1712998245000,-321.14116247,0.00035485,2]
[322436315,1712998246545,-446.78238948,0.00035485,2]
[322436316,1712998246554,-500.0,0.00037583,7]
[322436317,1712998246564,-9053.21761052,0.0003999,2]
[322436348,1712999239554,905.0,0.00037648,30]
[322436351,1712999250221,905.0,0.00037648,30]
[322436352,1712999261120,905.0,0.00037648,30]
[322436353,1712999271861,905.0,0.00037648,30]
[322436354,1712999282325,905.0,0.00037648,30]
[322436355,1712999293446,905.0,0.00037648,30]
[322436356,1712999303996,905.0,0.00037648,30]
[322436357,1712999314618,905.0,0.00037648,30]
[322436358,1712999325220,905.0,0.00037648,30]
[322436359,1712999335890,905.0,0.00037648,30]
[322436360,1712999346527,905.0,0.00037648,30]
[322436361,1712999357165,905.0,0.00037648,30]
[322436362,1712999368299,905.0,0.00037647,30]
[322436363,1712999379445,905.0,0.00037647,30]
[322436365,1712999390253,905.0,0.00037647,30]
[322436366,1712999401457,905.0,0.00037647,30]
[322436367,1712999412172,905.0,0.00037647,30]
[322436368,1712999422821,926.75919761,0.00037647,30]
[322436469,1712999438678,-1042.0,0.00027396,2]
[322436470,1712999438689,-159.547095,0.00027397,2]
[322436471,1712999438698,-172.061539,0.00027397,2]
[322436472,1712999438707,-194.97669508,0.0002877,2]
[322436473,1712999438717,-1273.99064541,0.00035615,4]
[322436474,1712999438728,-389.91,0.00035616,2]
[322436475,1712999438737,-7683.42518068,0.00036895,2]
[322436476,1712999438747,-153.05200403,0.00037482,8]
[322436477,1712999438757,-202.58507945,0.0003758,30]
[322436478,1712999438767,-310.45774216,0.00037581,4]
[322436479,1712999438777,-209.16026191,0.00037581,4]
[322436480,1712999438786,-516.52882906,0.00037581,4]
[322436481,1712999438797,-887.42344594,0.00037581,4]
[322436482,1712999438807,-1223.10201171,0.00037581,4]
[322436483,1712999438828,-2918.49,0.00037581,7]
[322436484,1712999438839,-2966.09,0.00037581,7]
[322436485,1712999438848,-500.0,0.00037581,7]
[322436486,1712999438859,-975.15,0.00037581,7]
[322436487,1712999438869,-1028.32,0.00037581,7]
[322436488,1712999438879,-862.38,0.00037581,7]
[322436489,1712999438889,-500.0,0.00037581,7]
[322436490,1712999438898,-528.67681936,0.00037581,7]
[322436491,1712999438908,-1144.89,0.00037581,7]
[322436492,1712999438917,-500.0,0.00037581,7]
[322436493,1712999438927,-500.0,0.00037581,7]
[322436494,1712999438937,-3938.58,0.00037581,7]
[322436495,1712999438947,-1197.2,0.00037581,7]
[322436496,1712999438956,-1450.64,0.00037581,7]
[322436497,1712999438965,-1483.67,0.00037581,7]
[322436498,1712999438975,-500.0,0.00037582,7]
[322436499,1712999438985,-500.0,0.00037582,14]
[322436500,1712999438994,-500.0,0.00037582,7]
[322436501,1712999439003,-298.81347776,0.00037582,7]
[322436502,1712999439013,-500.0,0.00037582,7]
[322436503,1712999439022,-500.0,0.00037582,7]
[322436504,1712999439032,-666.85,0.00037582,7]
[322436505,1712999439041,-500.0,0.00037582,7]
[322436506,1712999439051,-500.0,0.00037582,7]
[322436507,1712999439060,-2704.81,0.00037582,7]
[322436508,1712999439070,-937.27,0.00037582,7]
[322436509,1712999439079,-500.0,0.00037582,7]
[322436510,1712999439089,-513.10504272,0.00037582,7]
[322436511,1712999439098,-500.0,0.00037582,7]
[322436512,1712999439108,-500.0,0.00037582,7]
[322436513,1712999439118,-518.88335223,0.00037582,7]
[322436514,1712999439128,-559.75115527,0.00037582,7]
[322436515,1712999439137,-500.0,0.00037582,7]
[322436516,1712999439147,-500.0,0.00037582,7]
[322436517,1712999439156,-500.0,0.00037582,7]
[322436518,1712999439166,-536.38619148,0.00037582,7]
[322436519,1712999439175,-500.0,0.00037582,7]
[322436520,1712999439185,-300.0,0.00037582,7]
[322436521,1712999439194,-507.89043381,0.00037582,7]
[322436522,1712999439204,-500.0,0.00037582,7]
[322436523,1712999439214,-500.0,0.00037582,7]
[322436524,1712999439223,-500.0,0.00037582,7]
[322436525,1712999439232,-500.0,0.00037582,7]
[322436526,1712999439241,-501.40871073,0.00037582,7]
[322436527,1712999439250,-500.0,0.00037582,7]
[322436528,1712999439259,-500.0,0.00037582,7]
[322436529,1712999439269,-500.0,0.00037582,7]
[322436530,1712999439278,-500.0,0.00037582,7]
[322436531,1712999439287,-500.0,0.00037582,7]
[322436532,1712999439296,-500.0,0.00037582,7]
[322436533,1712999439305,-500.0,0.00037582,7]
[322436534,1712999439314,-4352.79,0.00037582,7]
[322436535,1712999439323,-678.86,0.00037582,7]
[322436536,1712999439334,-500.0,0.00037582,7]
[322436537,1712999439343,-500.0,0.00037582,7]
[322436538,1712999439351,-500.0,0.00037582,7]
[322436539,1712999439361,-500.0,0.00037582,7]
[322436540,1712999439370,-1492.81,0.00037582,7]
[322436541,1712999439379,-500.0,0.00037582,7]
[322436542,1712999439388,-500.0,0.00037582,7]
[322436543,1712999439397,-500.0,0.00037582,7]
[322436544,1712999439406,-500.0,0.00037582,7]
[322436545,1712999439415,-500.0,0.00037582,7]
[322436546,1712999439424,-500.87870889,0.00037582,7]
[322436547,1712999439433,-650.74,0.00037582,7]
[322436548,1712999439442,-500.0,0.00037582,7]
[322436549,1712999439451,-500.0,0.00037582,7]
[322436550,1712999439461,-500.0,0.00037582,7]
[322436552,1712999439472,-158.81891326,0.00037582,7]
[322436553,1712999439484,-500.0,0.00037582,7]
[322436554,1712999439496,-740.85,0.00037582,7]
[322436555,1712999439508,-500.0,0.00037582,7]
[322436556,1712999439518,-500.0,0.00037582,7]
[322436557,1712999439529,-1036.96,0.00037582,7]
[322436558,1712999439541,-499.30594782,0.00037582,7]
[322436559,1712999439551,-518.33024176,0.00037582,7]
[322436560,1712999439563,-1198.42,0.00037582,7]
[322436561,1712999439574,-500.0,0.00037582,7]
[322436562,1712999439588,-500.0,0.00037582,7]
[322436563,1712999439599,-500.0,0.00037582,7]
[322436564,1712999439609,-500.0,0.00037582,7]
[322436565,1712999439619,-877.96,0.00037582,7]
[322436566,1712999439629,-500.0,0.00037582,7]
[322436567,1712999439639,-500.0,0.00037582,7]
[322436568,1712999439650,-500.0,0.00037582,7]
[322436569,1712999439662,-500.0,0.00037582,7]
[322436570,1712999439672,-500.0,0.00037582,7]
[322436571,1712999439682,-500.0,0.00037582,7]
[322436572,1712999439692,-500.0,0.00037582,7]
[322436573,1712999439702,-500.0,0.00037582,7]
[322436574,1712999439712,-500.0,0.00037582,7]
[322436575,1712999439722,-500.0,0.00037582,7]
[322436576,1712999439731,-500.0,0.00037582,7]
[322436577,1712999439741,-500.0,0.00037582,7]
[322436578,1712999439750,-500.0,0.00037582,7]
[322436579,1712999439762,-500.0,0.00037582,7]
[322436580,1712999439772,-500.0,0.00037582,7]
[322436581,1712999439781,-894.88,0.00037582,7]
[322436582,1712999439793,-500.0,0.00037582,7]
[322436583,1712999439803,-500.0,0.00037582,7]
[322436584,1712999439812,-500.0,0.00037582,7]
[322436585,1712999439822,-500.0,0.00037582,7]
[322436586,1712999439833,-500.0,0.00037582,7]
[322436587,1712999439842,-804.23,0.00037582,7]
[322436588,1712999439852,-500.0,0.00037582,7]
[322436589,1712999439861,-500.0,0.00037582,7]
[322436590,1712999439871,-500.0,0.00037582,7]
[322436591,1712999439882,-500.0,0.00037582,7]
[322436592,1712999439891,-500.0,0.00037582,7]
[322436593,1712999439901,-500.0,0.00037582,7]
[322436594,1712999439910,-500.0,0.00037582,7]
[322436595,1712999439920,-500.0,0.00037582,7]
[322436596,1712999439929,-591.08396249,0.00037582,7]
[322436597,1712999439939,-500.0,0.00037582,7]
[322436598,1712999439948,-835.34,0.00037582,7]
[322436599,1712999439959,-500.0,0.00037582,7]
[322436600,1712999439968,-500.0,0.00037582,7]
[322436601,1712999439977,-2937.63,0.00037582,7]
[322436602,1712999439987,-500.0,0.00037582,7]
[322436603,1712999439997,-500.0,0.00037582,7]
[322436604,1712999440007,-500.0,0.00037582,7]
[322436605,1712999440016,-500.0,0.00037582,7]
[322436606,1712999440026,-500.0,0.00037582,7]
[322436607,1712999440036,-221.02911687,0.00037582,7]
[322436608,1712999440045,-500.0,0.00037582,7]
[322436609,1712999440055,-514.81,0.00037582,7]
[322436610,1712999440064,-500.0,0.00037582,7]
[322436611,1712999440074,-2564.13,0.00037582,7]
[322436612,1712999440084,-500.0,0.00037582,7]
[322436613,1712999440093,-501.64592472,0.00037582,7]
[322436614,1712999440105,-500.0,0.00037582,7]
[322436615,1712999440113,-500.0,0.00037582,7]
[322436616,1712999440124,-500.0,0.00037582,7]
[322436617,1712999440133,-500.0,0.00037582,7]
[322436618,1712999440142,-500.0,0.00037582,7]
[322436619,1712999440152,-500.0,0.00037582,7]
[322436620,1712999440162,-500.0,0.00037582,7]
[322436621,1712999440171,-500.0,0.00037582,7]
[322436622,1712999440180,-1139.46,0.00037582,7]
[322436623,1712999440189,-500.0,0.00037582,7]
[322436624,1712999440198,-500.0,0.00037582,7]
[322436625,1712999440208,-2343.8,0.00037582,7]
[322436627,1712999440217,-500.0,0.00037582,7]
[322436629,1712999440226,-1054.45,0.00037582,7]
[322436630,1712999440235,-500.0,0.00037582,7]
[322436632,1712999440244,-575.3582665,0.00037582,7]
[322436633,1712999440252,-500.0,0.00037582,7]
[322436634,1712999440261,-1523.53,0.00037582,7]